lending/lending_fUSD_20260211
["ID","MTS","AMOUNT","RATE_DAILY","PERIOD"]
[405083198,1770769837854,-500.0,0.00015264,2]
[405083199,1770769837864,-500.0,0.00015264,2]
[405083200,1770769837874,-500.0,0.00015264,2]
[405083201,1770769837883,-500.0,0.00015264,2]
[405083202,1770769837893,-500.0,0.00015264,2]
[405083204,1770769837902,-271.83524781,0.00015264,2]
[405083206,1770769837912,-500.0,0.00015264,2]
[405083207,1770769837923,-500.0,0.00015264,2]
[405083208,1770769837932,-500.0,0.00015264,2]
[405083209,1770769837943,-500.0,0.00015264,2]
[405083210,1770769837952,-500.0,0.00015264,2]
[405083211,1770769837965,-500.0,0.00015264,2]
[405083212,1770769837974,-499.99999999,0.00015264,2]
[405083214,1770769837992,-104797.08796459,0.00015265,2]
[405083215,1770769838008,-500.0,0.00015265,2]
[405083216,1770769839694,-325.47403664,0.00015265,2]
[405083217,1770769839708,-20812.31448118,0.00015265,2]
[405083218,1770769839759,-129261.74889666,0.00015265,2]
[405083219,1770769839771,-43298.48866076,0.00015265,2]
[405083220,1770769839919,-2290.38582166,0.00015265,2]
[405083221,1770769839935,-2377.47091591,0.00015265,2]
[405083222,1770769840064,-3196337.0292226,0.00015265,2]
[405083223,1770769840073,-150.0,0.00015267,2]
[405083224,1770769840083,-15805.87,0.00015365,2]
[405083226,1770769840092,-500.0,0.00015373,2]
[405083228,1770769840101,-242.72,0.00015434,2]
[405083230,1770769840111,-1248.06871994,0.00015478,2]
[405083232,1770769840120,-2507.51758267,0.00015486,2]
[405083234,1770769840130,-3989.42388343,0.00015557,2]
[405083236,1770769840139,-166.66,0.00015654,2]
[405083238,1770769840148,-1248.06871994,0.00015789,2]
[405083240,1770769840157,-9999.99,0.000158,2]
[405083242,1770769840167,-9999.99,0.000158,2]
[405083244,1770769840176,-6731.8452,0.000158,2]
[405083246,1770769840186,-2507.51758267,0.00015805,2]
[405083248,1770769840197,-2493.32,0.00015871,2]
[405083250,1770769840206,-150.0,0.00015874,2]
[405083252,1770769840216,-9999.99,0.00015874,2]
[405083253,1770769840225,-349.24,0.000159,2]
[405083254,1770769840234,-1202.63,0.000159,2]
[405083255,1770769840243,-9999.99,0.000159,2]
[405083256,1770769840253,-299.99,0.000159,2]
[405083257,1770769840263,-150.99,0.000159,2]
[405083258,1770769840273,-14021.91,0.000159,2]
[405083259,1770769840283,-1471.66,0.000159,2]
[405083260,1770769840293,-7128.13,0.000159,2]
[405083261,1770769840594,-9999.99,0.000159,2]
[405083262,1770769840605,-999.99,0.000159,2]
[405083263,1770769840614,-1069.48,0.000159,2]
[405083264,1770769840624,-2700.0,0.000159,5]
[405083265,1770769840633,-1000.0,0.00015921,2]
[405083266,1770769840642,-3989.42388343,0.00015948,2]
[405083267,1770769840652,-200.0,0.00015973,2]
[405083268,1770769840662,-2500.0,0.00015988,2]
[405083269,1770769840671,-497.983,0.0001604,2]
[405083270,1770769840680,-184.57649485,0.0001606,2]
[405083271,1770769840691,-150.0,0.00016077,2]
[405083272,1770769840700,-150.78444994,0.00016077,2]
[405083273,1770769840711,-1248.06871994,0.00016099,2]
[405083274,1770769840720,-2507.51758267,0.00016124,2]
[405083275,1770769840730,-10000.0,0.00016151,2]
[405083276,1770769840739,-920.26316785,0.00016167,2]
[405083277,1770769840750,-166.66,0.00016171,2]
[405083278,1770769840759,-1069.48,0.00016174,2]
[405083279,1770769840769,-200.0,0.00016188,2]
[405083280,1770769840779,-235569.62,0.000162,5]
[405083281,1770769840789,-500.0,0.0001625,2]
[405083282,1770769840798,-500.0,0.0001625,2]
[405083283,1770769840808,-500.0,0.0001625,2]
[405083284,1770769840818,-1000.0,0.00016268,2]
[405083285,1770769840829,-358.39522769,0.00016268,2]
[405083286,1770769840838,-3989.42388343,0.00016338,2]
[405083287,1770769840848,-237.09718154,0.00016351,2]
[405083288,1770769840857,-500.0,0.00016367,2]
[405083289,1770769840867,-500.0,0.00016367,2]
[405083290,1770769840876,-500.0,0.00016367,2]
[405083291,1770769840885,-500.0,0.00016367,2]
[405083292,1770769840895,-461.38605445,0.00016367,2]
[405083293,1770769840905,-500.0,0.00016367,2]
[405083294,1770769840914,-500.0,0.00016367,2]
[405083295,1770769840924,-500.0,0.00016367,2]
[405083296,1770769840933,-500.0,0.00016367,2]
[405083297,1770769840943,-500.0,0.00016367,2]
[405083298,1770769840952,-500.0,0.00016367,2]
[405083299,1770769840961,-500.0,0.00016367,2]
[405083300,1770769840974,-500.0,0.00016367,2]
[405083301,1770769840983,-500.0,0.00016367,2]
[405083302,1770769840993,-500.0,0.00016367,2]
[405083303,1770769841002,-500.0,0.00016367,2]
[405083304,1770769841012,-500.0,0.00016367,2]
[405083305,1770769841021,-373.37674886,0.00016367,2]
[405083306,1770769841031,-500.0,0.00016367,2]
[405083307,1770769841041,-500.0,0.00016367,2]
[405083308,1770769841051,-500.0,0.00016367,2]
[405083309,1770769841060,-500.0,0.00016367,2]
[405083310,1770769841070,-578.02,0.00016367,2]
[405083311,1770769841080,-500.0,0.00016367,2]
[405083312,1770769841089,-500.0,0.00016367,2]
[405083313,1770769841099,-500.0,0.00016367,2]
[405083314,1770769841109,-308.02,0.00016367,2]
[405083315,1770769841118,-1248.06871994,0.0001641,2]
[405083316,1770769841128,-2507.51758267,0.00016443,2]
[405083317,1770769841138,-1069.48,0.00016448,2]
[405083318,1770769841147,-420.24240387,0.00016468,2]
[405083319,1770769841156,-33318.2211,0.00016552,2]
[405083320,1770769841165,-313355.32034554,0.00016553,2]
[405083321,1770769841178,-2493.32,0.00016664,2]
[405083322,1770769841189,-166.66,0.00016687,2]
[405083323,1770769841199,-1248.06871994,0.00016721,2]
[405083324,1770769841209,-1069.48,0.00016722,2]
[405083325,1770769841219,-3989.42388343,0.00016729,2]
[405083326,1770769841229,-2507.51758267,0.00016762,2]
[405083327,1770769841238,-1069.48,0.00016996,2]
[405083328,1770769841248,-300.0,0.00017,2]
[405083329,1770769841258,-1248.06871994,0.00017032,2]
[405083330,1770769841267,-2507.51758267,0.00017081,2]
[405083332,1770769841276,-3989.42388343,0.00017119,2]
[405083334,1770769841287,-166.66,0.00017204,2]
[405083336,1770769841296,-1069.48,0.0001727,2]
[405083338,1770769841306,-1248.06871994,0.00017342,2]
[405083340,1770769841316,-242.72,0.00017363,2]
[405083342,1770769841326,-175.4,0.00017388,2]
[405083343,1770769841336,-2507.51758267,0.000174,2]
[405083344,1770769841346,-2493.32,0.00017458,2]
[405083345,1770769841355,-3989.42388343,0.0001751,2]
[405083346,1770769841365,-1069.48,0.00017544,2]
[405083347,1770769841375,-1248.06871994,0.00017653,2]
[405083348,1770769841385,-1555.80832114,0.00017677,2]
[405083349,1770769841395,-2507.51758267,0.00017719,2]
[405083350,1770769841404,-166.66,0.00017721,2]
[405083351,1770769841414,-500.0,0.000178,6]
[405083352,1770769841427,-1069.53176766,0.00017818,2]
[405083354,1770769841436,-1000.0,0.00017821,2]
[405083356,1770769841447,-481.49288599,0.00017837,2]
[405083358,1770769841456,-500.0,0.000179,6]
[405083360,1770769841466,-3989.42388343,0.000179,2]
[405083362,1770769841476,-1248.06871994,0.00017964,2]
[405083364,1770769841486,-281.31301356,0.00017986,2]
[405083366,1770769841496,-4265336.04482077,0.00018,2]
[405083455,1770769844204,-373516.44836768,0.00018,2]
[405083456,1770769844213,-3494.5642504,0.00018,2]
[405083457,1770769844223,-246094.98738182,0.00018,2]
[405083496,1770769912049,610.0,0.00022,120]
[405083519,1770770047828,151.0,0.0003561,31]
[405083520,1770770055640,1050.0,0.00035616,30]
[405083726,1770770958051,162.47,8.507e-05,2]
[405083727,1770770958262,162.47,9.317e-05,2]
[405083728,1770770958515,162.47,0.00010127,2]
[405083729,1770770958724,162.47,0.00010937,2]
[405083730,1770770959025,162.47,0.00011747,2]
[405083731,1770770959229,162.47,0.00012557,2]
[405083739,1770771031624,-162.47,0.00013367,2]
[405083740,1770771031633,-162.47,0.00014177,2]
[405083741,1770771031643,-433.98000001,0.00014344,2]
[405083742,1770771031655,-310.05,0.00014344,2]
[405083743,1770771031667,-27.14999999,0.00014344,2]
[405083744,1770771031676,-200.0,0.000146,5]
[405083745,1770771031686,-150.0,0.00014643,2]
[405083746,1770771031696,-500.0,0.000147,5]
[405083747,1770771031706,-250.0,0.00014704,2]
[405083748,1770771031715,-1200.0,0.00014765,2]
[405083749,1770771031724,-497.983,0.00014766,2]
[405083750,1770771031733,-4032.34167347,0.00014766,2]
[405083751,1770771031742,-204.02591838,0.00014766,2]
[405083752,1770771031752,-692.94676653,0.00014766,2]
[405083753,1770771031762,-624.27989841,0.00014766,2]
[405083754,1770771031771,-277.57418207,0.00014766,2]
[405083755,1770771031780,-706.02368596,0.00014766,2]
[405083756,1770771031789,-800.0,0.000148,5]
[405083757,1770771031799,-250.0,0.00014816,2]
[405083758,1770771031808,-209.13309471,0.00014855,2]
[405083759,1770771031818,-150.0,0.00014864,2]
[405083760,1770771031827,-1045635.46220394,0.00014865,2]
[405083761,1770771031840,-1254.41808677,0.00014865,2]
[405083762,1770771031851,-1917.42030992,0.00014865,2]
[405083763,1770771031869,-3142.50000002,0.00014865,2]
[405083764,1770771031884,-331.02,0.00014865,2]
[405083765,1770771031922,-773042.18453449,0.00014865,2]
[405083769,1770771037663,-19448.32808573,0.00014865,2]
[405083770,1770771037675,-1655228.66677913,0.00014865,2]
[405083771,1770771037684,-2500.0,0.00014866,2]
[405083772,1770771037693,-11118.68949208,0.00014867,2]
[405083773,1770771037702,-433.45021803,0.00014867,2]
[405083774,1770771037711,-14679.31755567,0.00014867,2]
[405083775,1770771037721,-1100.0,0.000149,5]
[405083776,1770771037730,-10000.0,0.00014967,2]
[405083777,1770771037739,-358.39522769,0.00014967,2]
[405083778,1770771037748,-920.26316785,0.00014999,2]
[405083779,1770771037757,-7128.13,0.00014999,2]
[405083780,1770771037767,-1471.66,0.00014999,2]
[405083781,1770771037776,-150.99,0.00014999,2]
[405083782,1770771037786,-14021.91,0.00014999,2]
[405083783,1770771037795,-1202.63,0.00014999,2]
[405083784,1770771037805,-9999.99,0.00014999,2]
[405083785,1770771037814,-9999.99,0.00014999,2]
[405083786,1770771037824,-9999.99,0.00014999,2]
[405083787,1770771037833,-349.24,0.00014999,2]
[405083788,1770771037843,-9999.99,0.00014999,2]
[405083789,1770771037852,-999.99,0.00014999,2]
[405083790,1770771037862,-151.72362972,0.00015,2]
[405083791,1770771037871,-11308.02,0.00015038,2]
[405083792,1770771037881,-237.09718154,0.00015065,2]
[405083793,1770771037890,-202.82770222,0.00015066,2]
[405083794,1770771037900,-500.0,0.00015066,2]
[405083796,1770771037911,-500.0,0.00015066,2]
[405083797,1770771037921,-500.0,0.00015066,2]
[405083798,1770771037930,-7161.06,0.000151,2]
[405083799,1770771037939,-166.66,0.00015119,2]
[405083800,1770771037949,-1000.0,0.00015165,2]
[405083801,1770771037959,-33318.2211,0.00015165,2]
[405083802,1770771037968,-11118.68949203,0.00015192,2]
[405083803,1770771037978,-14679.31755567,0.00015192,2]
[405083804,1770771037987,-4032.34167341,0.00015214,2]
[405083805,1770771037996,-500.0,0.00015264,2]
[405083806,1770771038006,-500.0,0.00015264,2]
[405083807,1770771038015,-500.0,0.00015264,2]
[405083808,1770771038026,-500.0,0.00015264,2]
[405083809,1770771038035,-500.0,0.00015264,2]
[405083810,1770771038045,-500.0,0.00015264,2]
[405083811,1770771038054,-500.0,0.00015264,2]
[405083812,1770771038063,-500.0,0.00015264,2]
[405083813,1770771038074,-157.14,0.00015264,2]
[405083814,1770771038083,-500.0,0.00015264,2]
[405083815,1770771038092,-500.0,0.00015264,2]
[405083816,1770771038101,-500.0,0.00015264,2]
[405083817,1770771038112,-500.0,0.00015264,2]
[405083818,1770771038122,-461.38605445,0.00015264,2]
[405083819,1770771038132,-508.10969016,0.00015264,2]
[405083820,1770771038142,-1222.26,0.00015264,2]
[405083821,1770771038152,-500.0,0.00015264,2]
[405083822,1770771038162,-500.0,0.00015264,2]
[405083823,1770771038171,-500.0,0.00015264,2]
[405083824,1770771038181,-500.0,0.00015264,2]
[405083825,1770771038190,-500.0,0.00015264,2]
[405083826,1770771038200,-500.0,0.00015264,2]
[405083827,1770771038209,-500.0,0.00015264,2]
[405083828,1770771038219,-500.0,0.00015264,2]
[405083829,1770771038228,-500.0,0.00015264,2]
[405083830,1770771038238,-500.0,0.00015264,2]
[405083831,1770771038247,-500.0,0.00015264,2]
[405083832,1770771038257,-500.0,0.00015264,2]
[405083833,1770771038266,-373.37674886,0.00015264,2]
[405083834,1770771038276,-500.0,0.00015264,2]
[405083835,1770771038286,-500.0,0.00015264,2]
[405083836,1770771038296,-500.0,0.00015264,2]
[405083837,1770771038306,-500.0,0.00015264,2]
[405083838,1770771038316,-578.02,0.00015264,2]
[405083839,1770771038330,-500.0,0.00015264,2]
[405083840,1770771038340,-500.0,0.00015264,2]
[405083841,1770771038349,-500.0,0.00015264,2]
[405083842,1770771038359,-308.02,0.00015264,2]
[405083843,1770771038370,-692.94676653,0.00015372,2]
[405083844,1770771038379,-542.14625475,0.00015373,2]
[405083845,1770771038389,-500.0,0.00015373,2]
[405083846,1770771038401,-500.0,0.00015373,2]
[405083847,1770771038410,-157.27282136,0.00015373,2]
[405083848,1770771038420,-500.0,0.00015373,2]
[405083849,1770771038430,-166.66,0.00015437,2]
[405083850,1770771038441,-11118.68949203,0.00015518,2]
[405083851,1770771038451,-14679.31755567,0.00015518,2]
[405083852,1770771038460,-1222.26,0.00015538,2]
[405083853,1770771038472,-4032.34167341,0.00015661,2]
[405083854,1770771038482,-166.66,0.00015755,2]
[405083855,1770771038491,-277.01836829,0.00015778,2]
[405083856,1770771038501,-1222.26,0.00015812,2]
[405083857,1770771038511,-11118.68949203,0.00015843,2]
[405083858,1770771038521,-14679.31755567,0.00015843,2]
[405083859,1770771038531,-1400.0,0.000159,5]
[405083860,1770771038541,-1006.53776349,0.00015921,2]
[405083861,1770771038551,-1000.0,0.00015921,2]
[405083862,1770771038560,-1000.0,0.00015921,2]
[405083863,1770771038571,-150.0,0.00015925,2]
[405083864,1770771038581,-150.78444994,0.00015925,2]
[405083865,1770771038591,-692.94676653,0.00015978,2]
[405083866,1770771038600,-1013.85,0.00016016,2]
[405083867,1770771038610,-166.66,0.00016074,2]
[405083868,1770771038619,-1222.26,0.00016086,2]
[405083869,1770771038629,-4032.34167341,0.00016109,2]
[405083870,1770771038639,-7434.79,0.00016116,2]
[405083871,1770771038648,-11118.68949203,0.00016169,2]
[405083872,1770771038657,-14679.31755567,0.00016169,2]
[405083873,1770771038667,-500.0,0.00016201,2]
[405083874,1770771038676,-1680.0,0.00016242,2]
[405083875,1770771038685,-250.0,0.00016243,2]
[405083876,1770771038695,-184.57649485,0.00016243,2]
[405083877,1770771038705,-7446.19,0.00016333,2]
[405083878,1770771038715,-230569.62,0.00016333,2]
[405083879,1770771038725,-1222.26,0.0001636,2]
[405083880,1770771038734,-433.45021802,0.00016384,2]
[405083881,1770771038743,-166.66,0.00016392,2]
[405083882,1770771038754,-367.36329817,0.00016438,2]
[405083883,1770771038764,-420.24240387,0.00016468,2]
[405083884,1770771038773,-1500.0,0.00016468,2]
[405083885,1770771038784,-11118.68949203,0.00016494,2]
[405083886,1770771038794,-14679.31755567,0.00016494,2]
[405083887,1770771038803,-4032.34167341,0.00016557,2]
[405083888,1770771038813,-692.94676653,0.00016584,2]
[405083889,1770771038823,-1222.26,0.00016634,2]
[405083890,1770771038832,-166.66,0.0001671,2]
[405083891,1770771038842,-11118.68949203,0.0001682,2]
[405083892,1770771038851,-14679.31755567,0.0001682,2]
[405083893,1770771038861,-1222.26,0.00016908,2]
[405083894,1770771038870,-4032.34167341,0.00017005,2]
[405083895,1770771038880,-1500.0,0.00017016,2]
[405083896,1770771038889,-11118.68949203,0.00017145,2]
[405083898,1770771038899,-14679.31755567,0.00017145,2]
[405083900,1770771038908,-1222.33176766,0.00017182,2]
[405083902,1770771038917,-692.94676653,0.0001719,2]
[405083903,1770771038927,-185.91,0.00017407,2]
[405083904,1770771038937,-4032.34167341,0.00017452,2]
[405083905,1770771038947,-11118.68949203,0.00017471,2]
[405083906,1770771038957,-14679.31755567,0.00017471,2]
[405083907,1770771038967,-1194.22942034,0.00017677,2]
[405083908,1770771038977,-11118.68949203,0.00017796,2]
[405083909,1770771038987,-14679.31755567,0.00017796,2]
[405083910,1770771038996,-692.94676653,0.00017796,2]
[405083911,1770771039006,-200.0,0.000178,6]
[405083912,1770771039015,-618.90313989,0.00017808,2]
[405083913,1770771039025,-2351.0,0.00017866,2]
[405083914,1770771039034,-250.0,0.00017888,2]
[405083915,1770771039044,-302984.85833488,0.00017896,2]
[405083916,1770771039057,-507.71285999,0.00017896,2]
[405083917,1770771039082,-1282.2401957,0.00017896,2]
[405083918,1770771039229,-182949.20878396,0.00017896,2]
[405083919,1770771039242,-12172.3352501,0.00017896,2]
[405083920,1770771039259,-2013.03541409,0.00017896,2]
[405083921,1770771039279,-476.9799995,0.00017896,2]
[405083925,1770771039779,-2738.90262101,0.00017896,2]
[405083926,1770771039792,-59686.30157129,0.00017896,2]
[405083927,1770771039818,-4314.1106964,0.00017896,2]
[405083928,1770771039832,-103275.88776718,0.00017896,2]
[405083929,1770771039855,-26430.2684101,0.00017896,2]
[405083930,1770771039868,-285372.47845169,0.00017896,2]
[405083931,1770771039886,-13618.55243272,0.00017896,2]
[405083932,1770771040063,-62331.41560008,0.00017896,2]
[405083933,1770771040079,-1790.09687237,0.00017896,2]
[405083935,1770771040093,-1182961.72368654,0.00017896,2]
[405083936,1770771040106,-13884.2533419,0.00017896,2]
[405083937,1770771040119,-3093.2235745,0.00017896,2]
[405083938,1770771040131,-433.45021802,0.000179,2]
[405083939,1770771040143,-200.0,0.000179,6]
[405083940,1770771040155,-4032.34167341,0.000179,2]
[405083941,1770771040167,-900.0,0.00017929,2]
[405083942,1770771040179,-4091059.95175661,0.00018,2]
[405083943,1770771040191,-286.0,0.00018,2]
[405083944,1770771040203,-176.908834,0.00018,2]
[405083945,1770771040219,-176.908834,0.00018,2]
[405083946,1770771040232,-176.908834,0.00018,2]
[405083947,1770771040244,-176.908834,0.00018,2]
[405083948,1770771040256,-151.0,0.00018,2]
[405083949,1770771040269,-151.0,0.00018,2]
[405083950,1770771040282,-497.436968,0.00018,2]
[405083951,1770771040294,-497.436968,0.00018,2]
[405083952,1770771040306,-497.436968,0.00018,2]
[405083953,1770771040320,-497.436968,0.00018,2]
[405083954,1770771040334,-166.66,0.00018238,2]
[405083955,1770771040347,-2493.32,0.00018251,2]
[405083956,1770771040359,-180.45729479,0.000183,2]
[405083957,1770771040372,-2343.11,0.00018318,2]
[405083960,1770771040385,-260.42371824,0.00018406,2]
[405083961,1770771040400,-300.0,0.00018766,14]
[405083962,1770771040415,-233.76430216,0.00018873,2]
[405083963,1770771040427,-160.0,0.00018984,2]
[405083964,1770771040440,-3286.68079128,0.00019,2]
[405083965,1770771040453,-161.06414776,0.00019,2]
[405083966,1770771040467,-2493.32,0.00019045,2]
[405083967,1770771040480,-167.509418,0.00019178,2]
[405083968,1770771040492,-167.509418,0.00019178,2]
[405083969,1770771040506,-167.509418,0.00019178,2]
[405083970,1770771040519,-167.509418,0.00019178,2]
[405083971,1770771040532,-1296.12,0.00019178,2]
[405083972,1770771040544,-1852.42,0.00019244,2]
[405083973,1770771040556,-242.72,0.00019292,2]
[405083974,1770771040569,-900.0,0.00019299,2]
[405083975,1770771040582,-412.0,0.00019652,2]
[405083976,1770771040594,-1201.48321952,0.00019707,2]
[405083977,1770771040607,-274.99208366,0.00019736,5]
[405083978,1770771040619,-920.26316781,0.00019875,2]
[405083979,1770771040632,-500.0,0.0001995,2]
[405083980,1770771040644,-500.0,0.0001995,2]
[405083981,1770771040656,-500.0,0.0001995,2]
[405083982,1770771040668,-270.80046435,0.0001995,2]
[405083983,1770771040680,-500.0,0.0001995,2]
[405083984,1770771040693,-500.0,0.0001995,2]
[405083985,1770771040704,-500.0,0.0001995,2]
[405083986,1770771040716,-500.0,0.0001995,2]
[405083987,1770771040729,-500.0,0.0001995,2]
[405083988,1770771040740,-500.0,0.00019973,2]
[405083989,1770771040753,-51990.01057078,0.0001999,2]
[405083990,1770771040766,-1535.38922159,0.0002,2]
[405083991,1770771040778,-176.74902392,0.0002,2]
[405083992,1770771040791,-1469.91312986,0.0002,5]
[405083993,1770771040803,-4869.55346463,0.0002,2]
[405083994,1770771040815,-1000.0,0.0002,7]
[405083995,1770771040828,-1000.0,0.00020049,2]
[405083996,1770771040843,-931.51,0.00020143,2]
[405083997,1770771040856,-779.50604697,0.00020498,2]
[405083998,1770771040868,-1000.0,0.00020498,2]
[405083999,1770771040881,-894.39203678,0.00020498,2]
[405084000,1770771040893,-881.2106862,0.00020498,2]
[405084001,1770771040906,-451.62599907,0.00020498,2]
[405084002,1770771040917,-1000.0,0.00020498,2]
[405084003,1770771040930,-1001.09037071,0.00020498,2]
[405084004,1770771040942,-1000.0,0.00020498,2]
[405084005,1770771040954,-3026.38658314,0.00021,2]
[405084006,1770771040967,-11712.14398847,0.00021,2]
[405084007,1770771040979,-5897.3900231,0.00021015,2]
[405084008,1770771040991,-3097.9956717,0.00021015,2]
[405084009,1770771041004,-507.15083583,0.00021046,2]
[405084010,1770771041015,-505.92312759,0.00021046,2]
[405084011,1770771041028,-1500.0,0.00021046,2]
[405084012,1770771041040,-237.09718151,0.00021174,2]
[405084013,1770771041052,-242.72,0.00021221,2]
[405084014,1770771041066,-500.0,0.00021233,2]
[405084015,1770771041079,-150033.0707778,0.00021446,2]
[405084016,1770771041092,-344975.7988067,0.00021446,2]
[405084017,1770771041106,-1918.87302684,0.00021594,2]
[405084018,1770771041118,-1315.8855803,0.00021711,2]
[405084019,1770771041131,-691.2562703,0.00021711,2]
[405084020,1770771041143,-175.4,0.00021735,2]
[405084021,1770771041156,-1652.65756776,0.00021737,2]
[405084022,1770771041167,-1326.3926143,0.00021858,2]
[405084023,1770771041180,-33476.9031102,0.00022238,2]
[405084024,1770771041192,-76974.505235,0.00022238,2]
[405084025,1770771041205,-1000.0,0.00022276,2]
[405084026,1770771041217,-20000.0,0.0002228,2]
[405084027,1770771041228,-1664.67,0.000223,7]
[405084028,1770771041241,-52502.04,0.000223,2]
[405084029,1770771041254,-500.0,0.00022932,2]
[405084030,1770771041265,-160.0,0.00023,2]
[405084031,1770771041278,-242.72,0.0002315,2]
[405084032,1770771041290,-2111.08571518,0.00023767,2]
[405084033,1770771041302,-7730.63262465,0.000241,2]
[405084034,1770771041314,-5938.81,0.00024308,2]
[405084035,1770771041331,-1000.0,0.00024504,2]
[405084036,1770771041346,-190.55,0.00024658,2]
[405084037,1770771041360,-151.0,0.00024658,2]
[405084038,1770771041371,-920.26316781,0.00024751,2]
[405084039,1770771041381,-150.0,0.00024844,2]
[405084040,1770771041391,-164.65652925,0.00024844,2]
[405084041,1770771041402,-48623.55249445,0.000249,7]
[405084042,1770771041411,-551.1569544,0.0002539,2]
[405084043,1770771041422,-250.0,0.00025392,2]
[405084044,1770771041432,-2569.51386259,0.00025797,2]
[405084045,1770771041442,-350.0,0.0002594,2]
[405084046,1770771041453,-179.22,0.00025962,2]
[405084047,1770771041463,-52502.04,0.00026,2]
[405084048,1770771041472,-175.4,0.00026083,2]
[405084049,1770771041482,-184.3,0.00026153,2]
[405084050,1770771041491,-1664.67,0.000262,7]
[405084051,1770771041501,-185.91,0.00026367,2]
[405084052,1770771041511,-450.0,0.00026488,2]
[405084053,1770771041843,-1000.0,0.00026731,2]
[405084054,1770771041872,-550.0,0.00027036,2]
[405084055,1770771041890,-237.09718151,0.00027283,2]
[405084056,1770771041900,-150.0,0.00027369,2]
[405084057,1770771041910,-300.0,0.00027397,2]
[405084058,1770771041919,-1447.79,0.00027397,2]
[405084059,1770771041929,-500.0,0.00027397,20]
[405084060,1770771041939,-150.0,0.00027397,5]
[405084061,1770771041948,-150.0,0.00027397,5]
[405084062,1770771041957,-624.2798984,0.00027524,2]
[405084063,1770771041967,-650.0,0.00027583,5]
[405084064,1770771041977,-277.57418205,0.00027683,2]
[405084065,1770771041986,-2664.4073929,0.00027827,2]
[405084066,1770771041996,-250.0,0.00027945,5]
[405084067,1770771042006,-250.0,0.00027945,5]
[405084068,1770771042015,-52502.04,0.00028,2]
[405084069,1770771042026,-750.0,0.00028131,5]
[405084070,1770771042035,-350.88325027,0.00028493,5]
[405084071,1770771042045,-350.0,0.00028493,5]
[405084072,1770771042055,-996.95089691,0.00028679,5]
[405084073,1770771042064,-450.0,0.00029041,5]
[405084074,1770771042074,-344.36,0.00029524,14]
[405084075,1770771042084,-473.02742012,0.00029589,5]
[405084076,1770771042094,-1664.67,0.000296,7]
[405084077,1770771042104,-920.26316781,0.00029628,2]
[405084078,1770771042113,-3027.94201001,0.00029857,2]
[405084079,1770771042123,-152.41,0.0003,2]
[405084080,1770771042132,-152.41,0.0003,2]
[405084081,1770771042142,-152.41,0.0003,2]
[405084082,1770771042152,-152.41,0.0003,2]
[405084083,1770771042161,-152.41,0.0003,2]
[405084084,1770771042170,-152.41,0.0003,2]
[405084085,1770771042180,-152.41,0.0003,2]
[405084086,1770771042189,-152.41,0.0003,2]
[405084087,1770771042198,-152.41,0.0003,2]
[405084088,1770771042208,-152.41,0.0003,2]
[405084089,1770771042218,-152.41,0.0003,2]
[405084090,1770771042228,-152.41,0.0003,2]
[405084091,1770771042245,-152.41,0.0003,2]
[405084092,1770771042269,-152.41,0.0003,2]
[405084093,1770771042279,-152.41,0.0003,2]
[405084094,1770771042288,-152.41,0.0003,2]
[405084095,1770771042297,-152.41,0.0003,2]
[405084096,1770771042307,-152.41,0.0003,2]
[405084097,1770771042317,-152.41,0.0003,2]
[405084098,1770771042329,-152.41,0.0003,2]
[405084099,1770771042339,-152.41,0.0003,2]
[405084100,1770771042348,-152.41,0.0003,2]